[Event "*** Titled Tuesday Blitz"]
[Site "Chess.com"]
[Date "2021.04.06"]
[Round "9"]
[White "Romadk"]
[Black "LenkaPtacnikova"]
[Result "0-1"]
[WhiteElo "2335"]
[BlackElo "2206"]
[TimeControl "180+1"]
[EndTime "11:45:53 PDT"]
[Termination "LenkaPtacnikova won by resignation"]

1. d4 {[%clk 0:03:00.9]} 1... Nf6 {[%clk 0:01:52.1]} 2. Nf3 {[%clk 0:02:59.7]}
2... e6 {[%clk 0:01:49.4]} 3. g3 {[%clk 0:02:59.2]} 3... c5 {[%clk 0:01:49.3]}
4. Bg2 {[%clk 0:01:46.1]} 4... Be7 {[%clk 0:01:48.1]} 5. O-O {[%clk 0:01:45.3]}
5... O-O {[%clk 0:01:48]} 6. b3 {[%clk 0:01:46.1]} 6... Nc6 {[%clk 0:01:46.4]}
7. Bb2 {[%clk 0:01:46.5]} 7... d5 {[%clk 0:01:44.6]} 8. e3 {[%clk 0:01:43.5]}
8... b6 {[%clk 0:01:41]} 9. Qe2 {[%clk 0:01:42.7]} 9... Bb7 {[%clk 0:01:35.4]}
10. Rd1 {[%clk 0:01:42.9]} 10... cxd4 {[%clk 0:01:27.9]} 11. Nxd4 {[%clk
0:01:41.1]} 11... Rc8 {[%clk 0:01:20.8]} 12. c4 {[%clk 0:01:41.1]} 12... Nxd4
{[%clk 0:01:16.5]} 13. Bxd4 {[%clk 0:01:39.6]} 13... Qc7 {[%clk 0:01:14.3]} 14.
Nd2 {[%clk 0:01:30.4]} 14... dxc4 {[%clk 0:01:10.2]} 15. Nxc4 {[%clk 0:01:31.3]}
15... Bxg2 {[%clk 0:01:09.2]} 16. Kxg2 {[%clk 0:01:32.2]} 16... Rfd8 {[%clk
0:01:02.3]} 17. Rac1 {[%clk 0:01:30.1]} 17... b5 {[%clk 0:00:52.7]} 18. Ne5
{[%clk 0:01:02]} 18... Qb7+ {[%clk 0:00:28]} 19. f3 {[%clk 0:01:00.5]} 19... Ba3
{[%clk 0:00:19.3]} 20. Rc2 {[%clk 0:00:57.1]} 20... Nd5 {[%clk 0:00:16.7]} 21.
e4 {[%clk 0:00:48.9]} 21... Nb4 {[%clk 0:00:16]} 22. Rxc8 {[%clk 0:00:48.8]}
22... Rxc8 {[%clk 0:00:15.7]} 23. Qe3 {[%clk 0:00:44.9]} 23... f6 {[%clk
0:00:15.5]} 24. Ng4 {[%clk 0:00:41.2]} 24... Nc2 {[%clk 0:00:14.7]} 25. Qd3
{[%clk 0:00:35.9]} 25... Nxd4 {[%clk 0:00:13.4]} 26. Qxd4 {[%clk 0:00:36.8]}
26... Qc7 {[%clk 0:00:11.8]} 27. Kh3 {[%clk 0:00:26.5]} 27... Bc5 {[%clk
0:00:11.8]} 28. Qd7 {[%clk 0:00:25.9]} 28... Qxd7 {[%clk 0:00:10.4]} 29. Rxd7
{[%clk 0:00:26.8]} 29... Bb6 {[%clk 0:00:10.7]} 30. e5 {[%clk 0:00:25.5]} 30...
f5 {[%clk 0:00:10.6]} 31. Nf6+ {[%clk 0:00:20.1]} 31... gxf6 {[%clk 0:00:09.3]}
32. exf6 {[%clk 0:00:21]} 32... Rf8 {[%clk 0:00:07.6]} 33. Rg7+ {[%clk 0:00:20]}
33... Kh8 {[%clk 0:00:07.9]} 34. Re7 {[%clk 0:00:17.3]} 34... Rxf6 {[%clk
0:00:07.9]} 35. Re8+ {[%clk 0:00:18.2]} 35... Kg7 {[%clk 0:00:07.9]} 36. f4
{[%clk 0:00:17.9]} 36... Kg6 {[%clk 0:00:08.2]} 37. Kg2 {[%clk 0:00:17.1]} 37...
Kf7 {[%clk 0:00:07.5]} 38. a4 {[%clk 0:00:16.4]} 38... Kxe8 {[%clk 0:00:07.3]}
39. axb5 {[%clk 0:00:15.8]} 39... Rf7 {[%clk 0:00:07.7]} 0-1

[Event "*** Titled Tuesday Blitz"]
[Site "Chess.com"]
[Date "2021.04.06"]
[Round "9"]
[White "Sadykov_Ramil"]
[Black "Xeniya2005"]
[Result "1-0"]
[WhiteElo "2501"]
[BlackElo "2329"]
[TimeControl "180+1"]
[EndTime "11:45:54 PDT"]
[Termination "Sadykov_Ramil won by checkmate"]

1. e4 {[%clk 0:02:58.4]} 1... e6 {[%clk 0:02:58.4]} 2. d4 {[%clk 0:02:58.2]}
2... d5 {[%clk 0:02:57.9]} 3. Nc3 {[%clk 0:02:57.4]} 3... Nf6 {[%clk 0:02:56.9]}
4. e5 {[%clk 0:02:50.8]} 4... Nfd7 {[%clk 0:02:54.4]} 5. f4 {[%clk 0:02:50.3]}
5... c5 {[%clk 0:02:51.2]} 6. Nf3 {[%clk 0:02:49.2]} 6... Nc6 {[%clk 0:02:50.2]}
7. Be3 {[%clk 0:02:41.8]} 7... Be7 {[%clk 0:02:43.8]} 8. Qd2 {[%clk 0:02:35.7]}
8... a6 {[%clk 0:02:41.2]} 9. Bd3 {[%clk 0:02:28.8]} 9... b5 {[%clk 0:02:39.7]}
10. Qf2 {[%clk 0:02:25.6]} 10... Qb6 {[%clk 0:02:36]} 11. O-O {[%clk 0:02:08.2]}
11... Bb7 {[%clk 0:02:32.9]} 12. Rae1 {[%clk 0:01:48.7]} 12... Rc8 {[%clk
0:02:23.8]} 13. dxc5 {[%clk 0:01:43.6]} 13... Bxc5 {[%clk 0:02:19.6]} 14. Bxc5
{[%clk 0:01:27.7]} 14... Qxc5 {[%clk 0:02:17.8]} 15. Ne2 {[%clk 0:01:23.5]}
15... Qxf2+ {[%clk 0:02:08.2]} 16. Kxf2 {[%clk 0:01:24.4]} 16... Nb6 {[%clk
0:02:03.6]} 17. Ned4 {[%clk 0:01:21.8]} 17... Na4 {[%clk 0:01:56.4]} 18. b3
{[%clk 0:01:15.8]} 18... Nc5 {[%clk 0:01:51.7]} 19. Nxc6 {[%clk 0:01:14.3]}
19... Rxc6 {[%clk 0:01:49.4]} 20. Nd4 {[%clk 0:01:13.8]} 20... Rc8 {[%clk
0:01:48.9]} 21. Ke3 {[%clk 0:01:05.9]} 21... g6 {[%clk 0:01:44.9]} 22. Kd2
{[%clk 0:00:59]} 22... Ke7 {[%clk 0:01:43.8]} 23. Ra1 {[%clk 0:00:46.8]} 23...
Rhd8 {[%clk 0:01:41.2]} 24. g4 {[%clk 0:00:42.1]} 24... Ne4+ {[%clk 0:01:31.2]}
25. Ke3 {[%clk 0:00:42.2]} 25... f6 {[%clk 0:01:10]} 26. exf6+ {[%clk
0:00:25.4]} 26... Kxf6 {[%clk 0:01:04.3]} 27. b4 {[%clk 0:00:25.5]} 27... Rc3
{[%clk 0:01:00.4]} 28. a4 {[%clk 0:00:25.3]} 28... bxa4 {[%clk 0:00:56.7]} 29.
Rxa4 {[%clk 0:00:26.2]} 29... Rd6 {[%clk 0:00:52.4]} 30. Rb1 {[%clk 0:00:23.3]}
30... Rb6 {[%clk 0:00:50.3]} 31. b5 {[%clk 0:00:14.7]} 31... axb5 {[%clk
0:00:40.2]} 32. Rxb5 {[%clk 0:00:15.6]} 32... Rxb5 {[%clk 0:00:33.1]} 33. Nxb5
{[%clk 0:00:16.5]} 33... Rc5 {[%clk 0:00:30.5]} 34. Ra7 {[%clk 0:00:15.7]} 34...
Bc6 {[%clk 0:00:25.9]} 35. g5+ {[%clk 0:00:06.9]} 35... Kf5 {[%clk 0:00:20.2]}
36. Nd4+ {[%clk 0:00:07.8]} 36... Kg4 {[%clk 0:00:20.3]} 37. Rxh7 {[%clk
0:00:07.8]} 37... e5 {[%clk 0:00:16.4]} 38. Be2# {[%clk 0:00:07.8]} 1-0

[Event "*** Titled Tuesday Blitz"]
[Site "Chess.com"]
[Date "2021.04.06"]
[Round "9"]
[White "Stormeman100100"]
[Black "MirMan90"]
[Result "0-1"]
[WhiteElo "2522"]
[BlackElo "2681"]
[TimeControl "180+1"]
[EndTime "11:45:55 PDT"]
[Termination "MirMan90 won by resignation"]

1. e4 {[%clk 0:03:00.9]} 1... e6 {[%clk 0:02:59.4]} 2. d4 {[%clk 0:02:59.8]}
2... d5 {[%clk 0:02:59.4]} 3. Nc3 {[%clk 0:02:58.9]} 3... Bb4 {[%clk 0:02:57.8]}
4. e5 {[%clk 0:02:58.9]} 4... c5 {[%clk 0:02:55.9]} 5. a3 {[%clk 0:02:54.3]}
5... Bxc3+ {[%clk 0:02:56.1]} 6. bxc3 {[%clk 0:02:55.2]} 6... Ne7 {[%clk
0:02:56.6]} 7. h4 {[%clk 0:02:51.7]} 7... Qc7 {[%clk 0:02:50.7]} 8. Nf3 {[%clk
0:02:49.8]} 8... b6 {[%clk 0:02:50.3]} 9. Bb5+ {[%clk 0:02:43.5]} 9... Bd7
{[%clk 0:02:50.3]} 10. Bd3 {[%clk 0:02:39.2]} 10... Ba4 {[%clk 0:02:40.5]} 11.
h5 {[%clk 0:02:34]} 11... h6 {[%clk 0:02:40.3]} 12. dxc5 {[%clk 0:02:22.3]}
12... bxc5 {[%clk 0:02:34.3]} 13. c4 {[%clk 0:02:20.8]} 13... Nbc6 {[%clk
0:02:27.7]} 14. Bf4 {[%clk 0:02:16.3]} 14... Rd8 {[%clk 0:02:22.3]} 15. Qe2
{[%clk 0:02:15.6]} 15... dxc4 {[%clk 0:02:00.3]} 16. Bxc4 {[%clk 0:02:13.4]}
16... Nd4 {[%clk 0:01:46.7]} 17. Nxd4 {[%clk 0:02:00.1]} 17... Rxd4 {[%clk
0:01:43.4]} 18. Be3 {[%clk 0:01:57.3]} 18... Rd7 {[%clk 0:01:23.7]} 19. O-O
{[%clk 0:01:13.6]} 19... Nf5 {[%clk 0:00:51.7]} 20. f4 {[%clk 0:00:29.1]} 20...
O-O {[%clk 0:00:36.1]} 21. Bd3 {[%clk 0:00:29.2]} 21... Ng3 {[%clk 0:00:23.2]}
22. Qg4 {[%clk 0:00:15.1]} 22... Nxf1 {[%clk 0:00:23.3]} 23. Rxf1 {[%clk
0:00:15.3]} 23... c4 {[%clk 0:00:22]} 24. Be2 {[%clk 0:00:10.2]} 24... Bxc2
{[%clk 0:00:19]} 25. Kh2 {[%clk 0:00:04.6]} 25... Bf5 {[%clk 0:00:19.1]} 26. Qh4
{[%clk 0:00:05.1]} 26... c3 {[%clk 0:00:19.3]} 27. Rf3 {[%clk 0:00:04.2]} 27...
c2 {[%clk 0:00:19]} 28. Bc1 {[%clk 0:00:02.9]} 28... Rd1 {[%clk 0:00:18.4]} 29.
Bxd1 {[%clk 0:00:03.2]} 29... cxd1=Q {[%clk 0:00:18]} 30. Rg3 {[%clk 0:00:04.1]}
30... Qcd8 {[%clk 0:00:17.6]} 31. Qf6 {[%clk 0:00:01.4]} 31... Qxf6 {[%clk
0:00:17.5]} 32. exf6 {[%clk 0:00:02.3]} 32... g6 {[%clk 0:00:17.9]} 33. hxg6
{[%clk 0:00:02.5]} 33... Bxg6 {[%clk 0:00:18]} 34. Bb2 {[%clk 0:00:03.4]} 34...
Rb8 {[%clk 0:00:16.9]} 35. f5 {[%clk 0:00:04.3]} 35... Rxb2 {[%clk 0:00:16.6]}
36. fxg6 {[%clk 0:00:05.2]} 36... Qh5+ {[%clk 0:00:15.5]} 37. Kg1 {[%clk
0:00:04.5]} 37... Rb1+ {[%clk 0:00:15.5]} 38. Kf2 {[%clk 0:00:05.1]} 38... Qc5+
{[%clk 0:00:15.8]} 0-1

[Event "*** Titled Tuesday Blitz"]
[Site "Chess.com"]
[Date "2021.04.06"]
[Round "9"]
[White "elextranjero00"]
[Black "Alex-11211"]
[Result "0-1"]
[WhiteElo "2564"]
[BlackElo "2428"]
[TimeControl "180+1"]
[EndTime "11:45:55 PDT"]
[Termination "Alex-11211 won by resignation"]

1. e4 {[%clk 0:03:00.9]} 1... c5 {[%clk 0:02:59.4]} 2. Nf3 {[%clk 0:03:00.5]}
2... g6 {[%clk 0:02:59.9]} 3. d4 {[%clk 0:02:53.3]} 3... Bg7 {[%clk 0:03:00.8]}
4. c4 {[%clk 0:02:50.5]} 4... Nc6 {[%clk 0:03:00.1]} 5. d5 {[%clk 0:02:46.3]}
5... Nd4 {[%clk 0:02:58.7]} 6. Nc3 {[%clk 0:02:43.8]} 6... Nxf3+ {[%clk
0:02:56.6]} 7. Qxf3 {[%clk 0:02:43.3]} 7... d6 {[%clk 0:02:57.5]} 8. Bd3 {[%clk
0:02:36.6]} 8... Nf6 {[%clk 0:02:57.7]} 9. h3 {[%clk 0:02:36.4]} 9... O-O {[%clk
0:02:56.6]} 10. O-O {[%clk 0:02:36.1]} 10... e6 {[%clk 0:02:50.4]} 11. Bg5
{[%clk 0:02:30.8]} 11... h6 {[%clk 0:02:48.4]} 12. Bd2 {[%clk 0:02:26.4]} 12...
e5 {[%clk 0:02:41.9]} 13. a3 {[%clk 0:02:14.7]} 13... Nh7 {[%clk 0:02:37.1]} 14.
b4 {[%clk 0:02:13.6]} 14... b6 {[%clk 0:02:36.6]} 15. Qd1 {[%clk 0:02:07.5]}
15... f5 {[%clk 0:02:33]} 16. exf5 {[%clk 0:01:36.1]} 16... gxf5 {[%clk
0:02:33.9]} 17. f3 {[%clk 0:01:28.6]} 17... Qh4 {[%clk 0:02:24.2]} 18. Be1
{[%clk 0:01:16.8]} 18... Qg5 {[%clk 0:02:17.5]} 19. Qd2 {[%clk 0:01:09.6]} 19...
Qg6 {[%clk 0:02:07.8]} 20. Rc1 {[%clk 0:01:05.1]} 20... Ng5 {[%clk 0:01:56.1]}
21. Kh1 {[%clk 0:01:03.5]} 21... Bd7 {[%clk 0:01:49.6]} 22. bxc5 {[%clk
0:00:43.5]} 22... bxc5 {[%clk 0:01:50.5]} 23. Rb1 {[%clk 0:00:42.1]} 23... e4
{[%clk 0:01:17]} 24. Be2 {[%clk 0:00:39.2]} 24... Rab8 {[%clk 0:00:49.7]} 25.
Rxb8 {[%clk 0:00:34.4]} 25... Rxb8 {[%clk 0:00:50.6]} 26. fxe4 {[%clk
0:00:23.7]} 26... Nxe4 {[%clk 0:00:47.1]} 27. Nxe4 {[%clk 0:00:21.6]} 27... fxe4
{[%clk 0:00:48]} 28. Qe3 {[%clk 0:00:16.8]} 28... Rb2 {[%clk 0:00:43]} 29. Bd2
{[%clk 0:00:09.5]} 29... Bd4 {[%clk 0:00:34.7]} 30. Qf4 {[%clk 0:00:08.7]} 30...
Qg7 {[%clk 0:00:29]} 31. Bg4 {[%clk 0:00:06.7]} 31... Bxg4 {[%clk 0:00:26.2]}
32. hxg4 {[%clk 0:00:07.6]} 32... Be5 {[%clk 0:00:24.8]} 33. Qxh6 {[%clk
0:00:04.4]} 33... Qxh6+ {[%clk 0:00:20.4]} 34. Bxh6 {[%clk 0:00:05.3]} 34... Rb3
{[%clk 0:00:15]} 35. Re1 {[%clk 0:00:03.9]} 35... Rxa3 {[%clk 0:00:13.1]} 36.
Rxe4 {[%clk 0:00:04.1]} 36... Ra1+ {[%clk 0:00:13.2]} 0-1

[Event "*** Titled Tuesday Blitz"]
[Site "Chess.com"]
[Date "2021.04.06"]
[Round "9"]
[White "ChronicUnhappiness"]
[Black "PawnEatingZombie"]
[Result "1-0"]
[WhiteElo "2307"]
[BlackElo "2191"]
[TimeControl "180+1"]
[EndTime "11:45:57 PDT"]
[Termination "ChronicUnhappiness won by checkmate"]

1. d3 {[%clk 0:03:00.9]} 1... g6 {[%clk 0:02:57.7]} 2. Nf3 {[%clk 0:03:01.8]}
2... Bg7 {[%clk 0:02:58.1]} 3. g3 {[%clk 0:03:02.7]} 3... Nf6 {[%clk 0:02:57.5]}
4. Bg2 {[%clk 0:03:03.6]} 4... d6 {[%clk 0:02:58]} 5. O-O {[%clk 0:03:04]} 5...
O-O {[%clk 0:02:58.1]} 6. e4 {[%clk 0:03:03.7]} 6... c5 {[%clk 0:02:56.7]} 7.
Nc3 {[%clk 0:03:03]} 7... Nc6 {[%clk 0:02:57.1]} 8. h3 {[%clk 0:03:01.6]} 8...
Nd7 {[%clk 0:02:56.8]} 9. Be3 {[%clk 0:02:56.2]} 9... e5 {[%clk 0:02:56.5]} 10.
Qd2 {[%clk 0:02:53.3]} 10... f5 {[%clk 0:02:54.1]} 11. exf5 {[%clk 0:02:29.4]}
11... gxf5 {[%clk 0:02:51.6]} 12. Ng5 {[%clk 0:02:19.1]} 12... Nf6 {[%clk
0:02:46.5]} 13. Nd5 {[%clk 0:02:18]} 13... Ne7 {[%clk 0:02:30.6]} 14. Nxf6+
{[%clk 0:02:07.5]} 14... Bxf6 {[%clk 0:02:29.5]} 15. f4 {[%clk 0:02:00.7]} 15...
Bxg5 {[%clk 0:02:19.3]} 16. fxg5 {[%clk 0:02:00.1]} 16... Nc6 {[%clk 0:02:11.1]}
17. h4 {[%clk 0:01:58.1]} 17... Be6 {[%clk 0:02:09.5]} 18. Rae1 {[%clk
0:01:47.3]} 18... Qd7 {[%clk 0:02:08.8]} 19. Qd1 {[%clk 0:01:31.2]} 19... Rae8
{[%clk 0:02:03.3]} 20. Qh5 {[%clk 0:01:27]} 20... Qg7 {[%clk 0:01:54]} 21. b3
{[%clk 0:01:06.1]} 21... Nd4 {[%clk 0:01:43.8]} 22. Qd1 {[%clk 0:01:05.3]} 22...
Qc7 {[%clk 0:01:26.9]} 23. c3 {[%clk 0:01:04.6]} 23... Nc6 {[%clk 0:01:23.9]}
24. d4 {[%clk 0:01:01]} 24... cxd4 {[%clk 0:01:09.6]} 25. cxd4 {[%clk
0:01:01.9]} 25... Nb4 {[%clk 0:01:04.4]} 26. Qd2 {[%clk 0:00:40.5]} 26... a5
{[%clk 0:00:52.1]} 27. Rc1 {[%clk 0:00:32.6]} 27... Qb8 {[%clk 0:00:28.8]} 28.
a3 {[%clk 0:00:26.7]} 28... Nc6 {[%clk 0:00:28.6]} 29. d5 {[%clk 0:00:26]} 29...
f4 {[%clk 0:00:21.6]} 30. gxf4 {[%clk 0:00:22.8]} 30... exf4 {[%clk 0:00:21.8]}
31. Bxf4 {[%clk 0:00:16.5]} 31... Ne5 {[%clk 0:00:17.5]} 32. Bxe5 {[%clk
0:00:14.8]} 32... dxe5 {[%clk 0:00:16.1]} 33. dxe6 {[%clk 0:00:14.2]} 33... e4
{[%clk 0:00:15.1]} 34. Rxf8+ {[%clk 0:00:12.6]} 34... Rxf8 {[%clk 0:00:14.6]}
35. Rf1 {[%clk 0:00:10.8]} 35... Qa7+ {[%clk 0:00:13.1]} 36. Kh1 {[%clk
0:00:10.3]} 36... Rxf1+ {[%clk 0:00:12]} 37. Bxf1 {[%clk 0:00:09.7]} 37... e3
{[%clk 0:00:11.9]} 38. Qd8+ {[%clk 0:00:09]} 38... Kg7 {[%clk 0:00:12.5]} 39.
Qf6+ {[%clk 0:00:09.3]} 39... Kg8 {[%clk 0:00:12]} 40. e7 {[%clk 0:00:08.3]}
40... Qa8 {[%clk 0:00:09.3]} 41. Bc4# {[%clk 0:00:07.4]} 1-0

[Event "*** Titled Tuesday Blitz"]
[Site "Chess.com"]
[Date "2021.04.06"]
[Round "9"]
[White "dpopadic"]
[Black "morte-negra"]
[Result "0-1"]
[WhiteElo "2283"]
[BlackElo "1970"]
[TimeControl "180+1"]
[EndTime "11:45:57 PDT"]
[Termination "morte-negra won on time"]

1. e4 {[%clk 0:03:00.9]} 1... c5 {[%clk 0:02:57]} 2. Nc3 {[%clk 0:02:59.8]} 2...
d6 {[%clk 0:02:54.1]} 3. f4 {[%clk 0:02:59.6]} 3... g6 {[%clk 0:02:52.3]} 4. Nf3
{[%clk 0:02:59.3]} 4... Bg7 {[%clk 0:02:51.8]} 5. Bc4 {[%clk 0:02:59.1]} 5... e6
{[%clk 0:02:50.4]} 6. d3 {[%clk 0:02:58.5]} 6... Ne7 {[%clk 0:02:48.5]} 7. O-O
{[%clk 0:02:57.9]} 7... d5 {[%clk 0:02:48.6]} 8. Bb3 {[%clk 0:02:55.9]} 8... O-O
{[%clk 0:02:46.4]} 9. Qe1 {[%clk 0:02:56]} 9... Nbc6 {[%clk 0:02:44]} 10. f5
{[%clk 0:02:56]} 10... d4 {[%clk 0:02:38.2]} 11. f6 {[%clk 0:02:43.1]} 11...
Bxf6 {[%clk 0:02:35.8]} 12. e5 {[%clk 0:02:43.3]} 12... Nxe5 {[%clk 0:02:20.9]}
13. Nxe5 {[%clk 0:02:38.3]} 13... dxc3 {[%clk 0:02:20.6]} 14. bxc3 {[%clk
0:02:25.4]} 14... Bg7 {[%clk 0:02:11]} 15. Ng4 {[%clk 0:02:17.8]} 15... Nf5
{[%clk 0:02:05.1]} 16. Ne3 {[%clk 0:02:07.3]} 16... Nxe3 {[%clk 0:01:54]} 17.
Bxe3 {[%clk 0:02:05.9]} 17... b6 {[%clk 0:01:49.6]} 18. Bd2 {[%clk 0:01:54.5]}
18... Bb7 {[%clk 0:01:48.3]} 19. Qg3 {[%clk 0:01:54.5]} 19... b5 {[%clk
0:01:34.1]} 20. Rae1 {[%clk 0:01:48.3]} 20... c4 {[%clk 0:01:32]} 21. Bg5 {[%clk
0:01:43.3]} 21... f6 {[%clk 0:01:16.4]} 22. dxc4 {[%clk 0:01:42.7]} 22... fxg5
{[%clk 0:01:14.3]} 23. cxb5 {[%clk 0:01:41.8]} 23... Bd5 {[%clk 0:01:11.6]} 24.
c4 {[%clk 0:01:38]} 24... Qb6+ {[%clk 0:01:07.7]} 25. Kh1 {[%clk 0:01:36.4]}
25... Rxf1+ {[%clk 0:01:00.6]} 26. Rxf1 {[%clk 0:01:35.2]} 26... Bb7 {[%clk
0:00:45.8]} 27. Qxg5 {[%clk 0:01:33.4]} 27... Qd4 {[%clk 0:00:15.6]} 28. c5
{[%clk 0:01:23.2]} 28... Bd5 {[%clk 0:00:14.8]} 29. Bxd5 {[%clk 0:01:00.3]}
29... exd5 {[%clk 0:00:14.7]} 30. c6 {[%clk 0:00:56.8]} 30... Qc5 {[%clk
0:00:13.8]} 31. a4 {[%clk 0:00:47.9]} 31... a6 {[%clk 0:00:12.6]} 32. bxa6
{[%clk 0:00:21.2]} 32... Rxa6 {[%clk 0:00:09.2]} 33. Qd8+ {[%clk 0:00:20]} 33...
Bf8 {[%clk 0:00:09.1]} 34. c7 {[%clk 0:00:19.7]} 34... Rc6 {[%clk 0:00:08.2]}
0-1

[Event "*** Titled Tuesday Blitz"]
[Site "Chess.com"]
[Date "2021.04.06"]
[Round "9"]
[White "Airquake"]
[Black "AlexTriapishko"]
[Result "0-1"]
[WhiteElo "2671"]
[BlackElo "2827"]
[TimeControl "180+1"]
[EndTime "11:45:58 PDT"]
[Termination "AlexTriapishko won on time"]

1. g3 {[%clk 0:03:00.9]} 1... g6 {[%clk 0:02:56.5]} 2. Bg2 {[%clk 0:02:58.4]}
2... Bg7 {[%clk 0:02:57.4]} 3. Nf3 {[%clk 0:02:58.7]} 3... d5 {[%clk 0:02:56.4]}
4. O-O {[%clk 0:02:58.8]} 4... e5 {[%clk 0:02:56.7]} 5. d3 {[%clk 0:02:58.8]}
5... Ne7 {[%clk 0:02:56.9]} 6. Nbd2 {[%clk 0:02:55.5]} 6... O-O {[%clk
0:02:56.7]} 7. c3 {[%clk 0:02:55.6]} 7... Nbc6 {[%clk 0:02:56.2]} 8. Qc2 {[%clk
0:02:55.7]} 8... h6 {[%clk 0:02:54.8]} 9. e4 {[%clk 0:02:48.7]} 9... g5 {[%clk
0:02:54.1]} 10. Re1 {[%clk 0:02:39.1]} 10... Be6 {[%clk 0:02:47.7]} 11. Nb3
{[%clk 0:02:36.1]} 11... b6 {[%clk 0:02:30.5]} 12. d4 {[%clk 0:02:03.6]} 12...
dxe4 {[%clk 0:01:50.6]} 13. Nxe5 {[%clk 0:02:03]} 13... Nxe5 {[%clk 0:01:44.5]}
14. dxe5 {[%clk 0:02:02.5]} 14... Ng6 {[%clk 0:01:40.4]} 15. Bxe4 {[%clk
0:02:00.7]} 15... Nxe5 {[%clk 0:01:30]} 16. Nd4 {[%clk 0:01:56.2]} 16... Bd5
{[%clk 0:01:09.7]} 17. Be3 {[%clk 0:01:26.9]} 17... f5 {[%clk 0:00:44.5]} 18.
Bxd5+ {[%clk 0:00:55.5]} 18... Qxd5 {[%clk 0:00:45.4]} 19. f4 {[%clk 0:00:56]}
19... Ng4 {[%clk 0:00:39.6]} 20. Rad1 {[%clk 0:00:51]} 20... Nxe3 {[%clk
0:00:26.2]} 21. Rxe3 {[%clk 0:00:50.5]} 21... gxf4 {[%clk 0:00:26.8]} 22. gxf4
{[%clk 0:00:50.5]} 22... Rad8 {[%clk 0:00:27.3]} 23. Red3 {[%clk 0:00:46.2]}
23... Qe4 {[%clk 0:00:26.3]} 24. Ne2 {[%clk 0:00:29.8]} 24... Rde8 {[%clk
0:00:16.7]} 25. Ng3 {[%clk 0:00:24.9]} 25... Qxf4 {[%clk 0:00:15.2]} 26. Rf1
{[%clk 0:00:25.5]} 26... Qg4 {[%clk 0:00:14.1]} 27. Qd1 {[%clk 0:00:13.9]} 27...
Qxd1 {[%clk 0:00:12.6]} 28. Rdxd1 {[%clk 0:00:05.2]} 28... f4 {[%clk 0:00:13.5]}
29. Nh5 {[%clk 0:00:05.6]} 29... Be5 {[%clk 0:00:06.7]} 30. Rd7 {[%clk
0:00:05.3]} 30... Rf5 {[%clk 0:00:04.6]} 31. Ng3 {[%clk 0:00:04.8]} 31... Rg5
{[%clk 0:00:04.5]} 32. Kg2 {[%clk 0:00:02.7]} 32... fxg3 {[%clk 0:00:04.9]} 33.
h4 {[%clk 0:00:03.6]} 33... Rg7 {[%clk 0:00:04.7]} 0-1

[Event "*** Titled Tuesday Blitz"]
[Site "Chess.com"]
[Date "2021.04.06"]
[Round "9"]
[White "ajdemipopushi"]
[Black "MasterMK73"]
[Result "0-1"]
[WhiteElo "2411"]
[BlackElo "2293"]
[TimeControl "180+1"]
[EndTime "11:45:58 PDT"]
[Termination "MasterMK73 won on time"]

1. Nf3 {[%clk 0:03:00.9]} 1... d5 {[%clk 0:02:58.2]} 2. g3 {[%clk 0:03:01.1]}
2... e6 {[%clk 0:02:50.4]} 3. c4 {[%clk 0:03:00.9]} 3... c6 {[%clk 0:02:49.2]}
4. Bg2 {[%clk 0:03:01.3]} 4... f5 {[%clk 0:02:48.6]} 5. b3 {[%clk 0:03:00.7]}
5... Nf6 {[%clk 0:02:47.8]} 6. O-O {[%clk 0:03:00.6]} 6... Bd6 {[%clk
0:02:47.5]} 7. Ba3 {[%clk 0:02:59.6]} 7... O-O {[%clk 0:02:43.2]} 8. d4 {[%clk
0:02:58.8]} 8... Bxa3 {[%clk 0:02:38.7]} 9. Nxa3 {[%clk 0:02:58.4]} 9... Qd6
{[%clk 0:02:39.3]} 10. Nc2 {[%clk 0:02:55.8]} 10... Nbd7 {[%clk 0:02:37.5]} 11.
e3 {[%clk 0:02:54.3]} 11... Ne4 {[%clk 0:02:31.2]} 12. Nce1 {[%clk 0:02:53.1]}
12... b6 {[%clk 0:02:26.3]} 13. Nd3 {[%clk 0:02:51.2]} 13... Bb7 {[%clk
0:02:25.7]} 14. Nfe5 {[%clk 0:02:49.6]} 14... Nxe5 {[%clk 0:02:14.1]} 15. Nxe5
{[%clk 0:02:49.3]} 15... c5 {[%clk 0:02:09.9]} 16. cxd5 {[%clk 0:02:41.6]} 16...
exd5 {[%clk 0:02:06.8]} 17. Rc1 {[%clk 0:02:33.6]} 17... Rac8 {[%clk 0:02:04.4]}
18. Qd3 {[%clk 0:02:28.2]} 18... a6 {[%clk 0:01:54.7]} 19. Rfd1 {[%clk
0:02:24.2]} 19... b5 {[%clk 0:01:47.3]} 20. f3 {[%clk 0:02:03.7]} 20... c4
{[%clk 0:01:32.8]} 21. Qb1 {[%clk 0:01:42.6]} 21... Ng5 {[%clk 0:01:13.1]} 22.
bxc4 {[%clk 0:01:39.5]} 22... dxc4 {[%clk 0:01:12.1]} 23. h4 {[%clk 0:01:21.4]}
23... Ne6 {[%clk 0:01:02.6]} 24. a4 {[%clk 0:00:46]} 24... Nc7 {[%clk
0:01:01.2]} 25. Kf2 {[%clk 0:00:36.1]} 25... Qd5 {[%clk 0:00:52.5]} 26. Bh1
{[%clk 0:00:21]} 26... Qe6 {[%clk 0:00:45.3]} 27. Nxc4 {[%clk 0:00:17.9]} 27...
bxc4 {[%clk 0:00:35.5]} 28. Qxb7 {[%clk 0:00:17.4]} 28... Nd5 {[%clk 0:00:35.6]}
29. Re1 {[%clk 0:00:07.9]} 29... Rb8 {[%clk 0:00:35.5]} 30. Qa7 {[%clk 0:00:07]}
30... Rb2+ {[%clk 0:00:34.9]} 31. Kg1 {[%clk 0:00:06.9]} 31... c3 {[%clk
0:00:31.5]} 32. Qc5 {[%clk 0:00:06.3]} 32... Rd8 {[%clk 0:00:29.1]} 33. f4
{[%clk 0:00:06.1]} 33... Kh8 {[%clk 0:00:23.1]} 34. e4 {[%clk 0:00:05.7]} 34...
fxe4 {[%clk 0:00:20.9]} 35. Rxe4 {[%clk 0:00:05.2]} 35... Qh3 {[%clk 0:00:20.1]}
0-1